bitfinex/quotes_BTCUSD_20250423
["timestamp","ask_amount","ask_price","bid_price","bid_amount"]
[1745377799800,0.01078585,92714.0,92710.0,0.001]
[1745377800024,0.01078597,92713.0,92710.0,0.002]
[1745377800456,0.19415171,92711.0,92710.0,0.002]
[1745377800605,0.19415171,92711.0,92693.0,0.19418916]
[1745377800606,0.19417056,92702.0,92701.0,5.046e-05]
[1745377800977,0.19317056,92702.0,92701.0,5.046e-05]
[1745377801254,0.19217056,92702.0,92701.0,5.046e-05]
[1745377801669,0.19117056,92702.0,92701.0,5.046e-05]
[1745377802266,0.001,92702.0,92701.0,5.046e-05]
[1745377803042,0.003,92702.0,92701.0,5.046e-05]
[1745377804162,0.00678702,92704.0,92701.0,5.046e-05]
[1745377804363,0.0107869,92705.0,92701.0,5.046e-05]
[1745377804574,0.01078702,92704.0,92701.0,5.046e-05]
[1745377805873,0.01278702,92704.0,92701.0,5.046e-05]
[1745377806106,0.002,92704.0,92701.0,0.01083783]
[1745377806684,0.003,92704.0,92701.0,5.046e-05]
[1745377806896,0.01378702,92704.0,92701.0,5.046e-05]
[1745377810293,0.01378702,92704.0,92701.0,0.01083783]
[1745377810294,0.003,92704.0,92701.0,0.01083783]
[1745377810984,0.003,92704.0,92701.0,5.046e-05]
[1745377811395,0.003,92704.0,92701.0,0.01083783]
[1745377811614,0.003,92704.0,92701.0,5.046e-05]
[1745377811887,0.00678702,92704.0,92701.0,5.046e-05]
[1745377813074,0.0107869,92705.0,92701.0,0.01083783]
[1745377813353,0.01078702,92704.0,92701.0,5.046e-05]
[1745377814204,0.0107869,92705.0,92701.0,5.046e-05]
[1745377814537,0.01078702,92704.0,92701.0,5.046e-05]
[1745377816088,0.01178702,92704.0,92701.0,5.046e-05]
[1745377816291,0.19416847,92703.0,92701.0,5.046e-05]
[1745377816450,0.01178702,92704.0,92701.0,5.046e-05]
[1745377817253,0.19416847,92703.0,92701.0,5.046e-05]
[1745377818623,0.19516847,92703.0,92701.0,5.046e-05]
[1745377819488,0.00478702,92704.0,92701.0,5.046e-05]
[1745377820845,0.19416847,92703.0,92701.0,5.046e-05]
[1745377821046,0.0958,92702.0,92701.0,5.046e-05]
[1745377821265,0.20410305,92702.0,92701.0,5.046e-05]
[1745377822050,0.32993506,92702.0,92701.0,5.046e-05]
[1745377822266,0.66993506,92702.0,92701.0,5.046e-05]
[1745377822948,0.67493506,92702.0,92701.0,5.046e-05]
[1745377823358,0.67793506,92702.0,92701.0,5.046e-05]
[1745377823560,0.66993506,92702.0,92701.0,5.046e-05]
[1745377823756,0.66942305,92702.0,92701.0,0.00105046]
[1745377823959,0.67542305,92702.0,92701.0,0.00105046]
[1745377824175,0.33542305,92702.0,92701.0,0.00105046]
[1745377830850,0.33642305,92702.0,92701.0,0.00105046]
[1745377831053,0.33542305,92702.0,92701.0,0.00105046]
[1745377831317,0.33642305,92702.0,92701.0,0.00105046]
[1745377831606,0.68494212,92702.0,92701.0,0.00105046]
[1745377832504,0.34494212,92702.0,92701.0,0.00105046]
[1745377832874,0.68494212,92702.0,92701.0,0.00105046]
[1745377833114,0.68494212,92702.0,92701.0,1e-08]
[1745377833858,0.0958,92693.0,92671.0,0.001]
[1745377834033,0.15730305,92692.0,92671.0,0.001]
[1745377834387,0.21230185,92692.0,92671.0,0.001]
[1745377834595,0.21130185,92692.0,92671.0,0.001]
[1745377835215,0.21630185,92692.0,92671.0,0.001]
[1745377836014,0.22230185,92692.0,92691.0,0.0014245]
[1745377837118,0.01079121,92668.0,92664.0,0.01079167]
[1745377837368,0.01079121,92668.0,92664.0,0.01093202]
[1745377837601,0.01888344,92667.0,92664.0,0.00014035]
[1745377838153,0.01888344,92667.0,92664.0,0.00414035]
[1745377838667,0.00809212,92667.0,92664.0,0.00014035]
[1745377839205,0.00809212,92667.0,92664.0,0.00214035]
[1745377839557,0.00809212,92667.0,92664.0,0.01093202]
[1745377839753,0.00538908,92667.0,92664.0,0.01693202]
[1745377839986,0.00847068,92667.0,92664.0,0.01693202]
[1745377840635,0.00847068,92667.0,92665.0,0.19424809]
[1745377841005,0.001,92667.0,92666.0,0.0469]
[1745377842021,0.11812,92674.0,92671.0,0.01079086]
[1745377842213,0.11112,92674.0,92670.0,0.01079097]
[1745377842447,0.00752622,92673.0,92669.0,0.01079109]
[1745377842622,0.00752622,92673.0,92667.0,0.20503522]
[1745377842823,0.01079028,92676.0,92671.0,0.01079086]
[1745377843021,0.01079132,92667.0,92662.0,0.01358879]
[1745377843225,0.01079132,92667.0,92664.0,0.00014035]
[1745377843434,0.00749634,92666.0,92664.0,0.00014035]
[1745377843650,0.00749634,92666.0,92665.0,0.002]
[1745377844322,0.19424809,92665.0,92664.0,0.00014035]
[1745377844528,0.30255114,92665.0,92664.0,0.00014035]
[1745377844727,0.30999675,92665.0,92664.0,0.00214035]
[1745377845444,0.30899675,92665.0,92664.0,0.00214035]
[1745377846239,0.31399675,92665.0,92664.0,0.00314035]
[1745377846440,0.31399675,92665.0,92664.0,0.00114035]
[1745377846735,0.31199675,92665.0,92664.0,0.00114035]
[1745377847269,0.31499675,92665.0,92664.0,0.00114035]
[1745377851905,0.01544561,92665.0,92664.0,0.00114035]
[1745377852245,0.008,92665.0,92664.0,0.00114035]
[1745377852690,0.003,92665.0,92664.0,0.00014035]
[1745377853087,0.20502423,92672.0,92667.0,0.01079132]
[1745377853322,0.11909391,92671.0,92667.0,0.01079132]
[1745377853477,0.12394016,92671.0,92667.0,0.01079132]
[1745377854006,0.12394016,92671.0,92666.0,0.01079144]
[1745377854440,0.12394016,92671.0,92667.0,0.001]
[1745377854615,0.12394016,92671.0,92667.0,0.002]
[1745377854915,0.11694016,92671.0,92667.0,0.002]
[1745377855162,0.11694016,92671.0,92667.0,0.001]
[1745377856100,0.01079097,92670.0,92667.0,0.002]
[1745377856317,0.01563295,92670.0,92667.0,0.002]
[1745377857293,0.01563295,92670.0,92665.0,0.01079156]
[1745377857498,0.01563295,92670.0,92667.0,0.001]
[1745377857693,0.01563295,92670.0,92667.0,0.002]
[1745377858117,0.01563295,92670.0,92667.0,0.001]
[1745377858836,0.00484198,92670.0,92667.0,0.001]
[1745377859033,0.01563295,92670.0,92667.0,0.001]
[1745377859180,0.01563295,92670.0,92667.0,0.002]
[1745377860170,0.00484198,92670.0,92668.0,0.1942418]
[1745377860338,0.11812,92676.0,92672.0,0.01079074]
[1745377860540,0.11812,92676.0,92669.0,0.05599109]
[1745377860541,0.12891028,92676.0,92669.0,0.05599109]
[1745377860759,0.01079062,92673.0,92669.0,0.0452]
[1745377861702,0.01079062,92673.0,92668.0,0.01079121]
[1745377862217,0.01079074,92672.0,92669.0,0.001]
[1745377862565,0.20502235,92673.0,92669.0,0.001]
[1745377862829,0.01079074,92672.0,92666.0,0.01079144]
[1745377863198,0.01079086,92671.0,92667.0,0.01079132]
[1745377863837,0.01079086,92671.0,92669.0,0.001]
[1745377864254,0.01079086,92671.0,92668.0,0.001]
[1745377864567,0.01079086,92671.0,92667.0,0.01179132]
[1745377864872,0.01079086,92671.0,92667.0,0.01279132]
[1745377865074,0.01079074,92672.0,92667.0,0.01279132]
[1745377865226,0.01079074,92672.0,92667.0,0.01179132]
[1745377865627,0.01079074,92672.0,92668.0,0.001]
[1745377866052,0.01079074,92672.0,92669.0,0.001]
[1745377866249,0.01079074,92672.0,92668.0,0.001]
[1745377867034,0.01079086,92671.0,92667.0,0.01079132]
[1745377867251,0.01079074,92672.0,92669.0,0.001]
[1745377867418,0.01079074,92672.0,92667.0,0.01179132]
[1745377867774,0.01079074,92672.0,92668.0,0.01179121]
[1745377867926,0.01079074,92672.0,92668.0,0.001]
[1745377867927,0.01079086,92671.0,92668.0,0.001]
[1745377868135,0.00495411,92671.0,92668.0,0.001]
[1745377868538,0.00495411,92671.0,92668.0,0.002]
[1745377868972,0.00495411,92671.0,92668.0,0.001]
[1745377869287,0.00495411,92671.0,92669.0,0.001]
[1745377869691,0.00495411,92671.0,92668.0,0.01179121]
[1745377869985,0.01079062,92673.0,92668.0,0.01279121]
[1745377870273,0.00494984,92670.0,92669.0,0.19423971]
[1745377870468,0.52288,92675.0,92674.0,0.19422923]
[1745377870821,0.405,92675.0,92674.0,0.19422923]
[1745377870980,0.405,92675.0,92674.0,0.58082923]
[1745377871950,0.406,92675.0,92674.0,0.58582923]
[1745377872865,0.406,92675.0,92674.0,0.58982923]
[1745377873212,0.405,92675.0,92674.0,0.58482923]
[1745377873423,0.406,92675.0,92674.0,0.58882923]
[1745377874227,0.001,92675.0,92674.0,0.58882923]
[1745377875302,0.001,92675.0,92674.0,0.60337008]
[1745377877138,0.001,92675.0,92674.0,0.71167313]
[1745377877658,0.001,92675.0,92674.0,2.50707513]
[1745377877907,0.001,92675.0,92674.0,2.75606513]
[1745377878105,0.405,92702.0,92701.0,0.19417266]
[1745377878106,0.398,92702.0,92701.0,0.19417266]
[1745377878484,0.40337582,92702.0,92701.0,0.19417266]
[1745377879509,0.40337582,92702.0,92701.0,0.19617266]
[1745377879751,0.39337582,92702.0,92701.0,0.002]
[1745377880077,0.39337582,92702.0,92701.0,0.0152664]
[1745377880298,0.39337582,92702.0,92701.0,0.003]
[1745377881747,0.39337582,92702.0,92701.0,0.01650383]
[1745377884715,0.48977582,92702.0,92701.0,0.003]
[1745377884921,0.59807887,92702.0,92701.0,0.003]
[1745377885133,0.71691887,92702.0,92701.0,0.003]
[1745377885582,0.71691887,92702.0,92701.0,0.002]
[1745377885817,0.70991887,92702.0,92701.0,0.002]
[1745377886035,0.01078899,92687.0,92684.0,0.01681064]
[1745377886363,0.01078934,92684.0,92680.0,0.20067774]
[1745377886564,0.01078934,92684.0,92646.0,0.0474]
[1745377886565,0.19422713,92675.0,92646.0,0.0474]
[1745377886787,0.68253018,92675.0,92661.0,0.01079202]
[1745377886989,0.6877706,92675.0,92660.0,0.21146988]
[1745377887166,0.6877706,92675.0,92664.0,0.01686378]
[1745377887823,0.6877706,92675.0,92674.0,0.003]
[1745377888991,0.6877706,92675.0,92674.0,0.001]
[1745377889402,0.6967706,92675.0,92674.0,0.001]
[1745377890809,0.6967706,92675.0,92664.0,0.01686378]
[1745377890810,0.19424809,92665.0,92664.0,0.01686378]
[1745377891008,0.19424809,92665.0,92664.0,0.00014035]
[1745377891215,0.19937918,92665.0,92664.0,0.00014035]
[1745377892196,0.20237918,92665.0,92664.0,0.00014035]
[1745377892391,0.20337918,92665.0,92664.0,0.00014035]
[1745377893020,0.20337918,92665.0,92664.0,0.01688273]
[1745377893221,0.20337918,92665.0,92664.0,0.00014035]
[1745377893557,0.19637918,92665.0,92664.0,0.00014035]
[1745377893754,0.19637918,92665.0,92664.0,0.01684917]
[1745377894128,0.00913109,92665.0,92664.0,0.01684917]
[1745377897905,0.004,92665.0,92664.0,0.01684917]
[1745377898514,0.001,92665.0,92664.0,0.01684917]
[1745377898720,0.01079051,92674.0,92669.0,0.01079109]
[1745377898923,0.01079062,92673.0,92669.0,0.01079109]
[1745377899126,0.01581954,92673.0,92669.0,0.01079109]
[1745377899700,0.01581954,92673.0,92666.0,0.01079144]
[1745377900150,0.01581954,92673.0,92668.0,0.01079121]
[1745377901109,0.00502892,92673.0,92670.0,0.01079097]
[1745377901308,0.00627975,92672.0,92669.0,0.01079109]
[1745377902865,0.01079121,92668.0,92664.0,0.01684917]
[1745377903085,0.01079109,92669.0,92665.0,0.01079156]
[1745377903255,0.00624844,92667.0,92665.0,0.01079156]
[1745377903568,0.00624204,92666.0,92665.0,0.01079156]
[1745377903758,0.01079109,92669.0,92665.0,0.01079156]
[1745377903938,0.00624204,92666.0,92664.0,0.02764084]
[1745377904136,0.01079109,92669.0,92665.0,0.01079156]
[1745377904486,0.001,92668.0,92665.0,0.01079156]
[1745377904604,0.20503522,92667.0,92664.0,0.01684917]
[1745377905103,0.001,92666.0,92664.0,0.01684917]
[1745377905344,0.19424809,92665.0,92664.0,0.01684917]
[1745377905761,0.19324809,92665.0,92664.0,0.01684917]
[1745377906340,0.19324809,92665.0,92664.0,0.01784917]
[1745377906706,0.19324809,92665.0,92664.0,0.01684917]
[1745377906893,0.19324809,92665.0,92664.0,0.01784917]
[1745377907453,0.01179132,92667.0,92664.0,0.01784917]
[1745377907654,0.20603597,92667.0,92664.0,0.01784917]
[1745377907915,0.20503597,92667.0,92664.0,0.01784917]
[1745377908136,0.001,92665.0,92664.0,0.01784917]
[1745377908507,0.01079132,92667.0,92664.0,0.01784917]
[1745377908707,0.00679756,92666.0,92664.0,0.01784917]
[1745377908911,0.194246,92666.0,92664.0,0.01784917]
[1745377909333,0.194246,92666.0,92664.0,0.01684917]
[1745377910067,0.01058888,92667.0,92664.0,0.01684917]
[1745377911007,0.01079121,92668.0,92664.0,0.01684917]
[1745377911358,0.001,92666.0,92664.0,0.01684917]
[1745377911758,0.01079132,92667.0,92664.0,0.01684917]
[1745377911962,0.001,92667.0,92664.0,0.01684917]
[1745377912160,0.001,92667.0,92664.0,0.22188958]
[1745377912496,0.01079074,92672.0,92667.0,0.01079132]
[1745377912807,0.01079062,92673.0,92668.0,0.01079121]
[1745377913564,0.002,92672.0,92668.0,0.01079121]
[1745377914455,0.002,92672.0,92667.0,0.01079132]
[1745377914659,0.002,92672.0,92668.0,0.01079121]
[1745377914870,0.01079051,92674.0,92669.0,0.01079109]
[1745377915071,0.002,92673.0,92670.0,0.01079097]
[1745377915216,0.01379062,92673.0,92669.0,0.01079109]
[1745377915431,0.01279062,92673.0,92669.0,0.01079109]
[1745377915661,0.01079062,92673.0,92669.0,0.01079109]
[1745377915986,0.003,92672.0,92669.0,0.01079109]
[1745377916189,0.002,92672.0,92669.0,0.01079109]
[1745377916337,0.001,92673.0,92669.0,0.01079109]
[1745377916536,0.00779051,92674.0,92670.0,0.01079097]
[1745377916973,0.39179039,92675.0,92670.0,0.01079097]
[1745377917175,0.381,92675.0,92672.0,0.01079074]
[1745377917524,0.381,92675.0,92670.0,0.01079097]
[1745377918210,0.001,92672.0,92670.0,0.01079097]
[1745377918607,0.01079051,92674.0,92670.0,0.01079097]
[1745377918826,0.381,92675.0,92672.0,0.01079074]
[1745377918827,0.382,92675.0,92672.0,0.01079074]
[1745377918965,0.384,92675.0,92672.0,0.2050234]
[1745377919166,0.383,92675.0,92672.0,0.2050234]
[1745377919388,0.381,92675.0,92674.0,0.19422923]
[1745377921278,0.383,92675.0,92674.0,0.19422923]
[1745377921582,0.384,92675.0,92674.0,0.19422923]
[1745377922525,0.384,92675.0,92673.0,0.19423132]
[1745377922935,0.385,92675.0,92673.0,0.19423132]
[1745377924022,0.383,92675.0,92673.0,0.19423132]
[1745377924221,0.385,92675.0,92673.0,0.19423132]
[1745377924428,0.376,92675.0,92673.0,0.19423132]
[1745377924596,0.377,92675.0,92673.0,0.19423132]
[1745377925449,0.377,92675.0,92671.0,0.17144299]
[1745377925625,0.377,92675.0,92672.0,0.01079074]
[1745377926228,0.377,92675.0,92673.0,0.19423132]
[1745377927191,0.375,92675.0,92673.0,0.19423132]
[1745377927327,0.376,92675.0,92673.0,0.19423132]
[1745377927957,0.374,92675.0,92673.0,0.19423132]
[1745377928153,0.377,92675.0,92673.0,0.19423132]
[1745377930988,0.377,92675.0,92672.0,0.01079074]
[1745377931393,0.377,92675.0,92673.0,0.19423132]
[1745377931595,0.377,92675.0,92672.0,0.01079074]
[1745377931834,0.375,92675.0,92672.0,0.01079074]
[1745377932060,0.369,92675.0,92672.0,0.01079074]
[1745377932349,0.37,92675.0,92672.0,0.01079074]
[1745377937305,0.19424809,92665.0,92654.0,0.0004248]
[1745377937437,0.19424809,92665.0,92664.0,0.00014035]
[1745377937646,0.60644809,92665.0,92664.0,0.00014035]
[1745377937919,0.71475114,92665.0,92664.0,0.00014035]
[1745377938570,0.71875114,92665.0,92664.0,0.00014035]
[1745377938920,0.71875114,92665.0,92650.0,0.21169053]
[1745377938921,0.01079237,92658.0,92650.0,0.21169053]
[1745377939120,0.01079249,92657.0,92652.0,0.01079307]
[1745377939317,0.01079237,92658.0,92653.0,0.01079295]
[1745377939794,0.19425943,92660.0,92653.0,0.01079295]
[1745377940779,0.01079237,92658.0,92653.0,0.01079295]
[1745377941097,0.21307545,92660.0,92654.0,0.01079284]
[1745377941249,0.01079237,92658.0,92653.0,0.01079295]
[1745377941680,0.01079249,92657.0,92652.0,0.01079307]
[1745377941906,0.01079249,92657.0,92653.0,0.01079295]
[1745377943249,0.01179237,92658.0,92653.0,0.01079295]
[1745377943926,0.01079225,92659.0,92654.0,0.01079284]
[1745377944132,0.01079225,92659.0,92653.0,0.01079295]
[1745377944133,0.001,92657.0,92653.0,0.01079295]
[1745377944720,0.01079237,92658.0,92653.0,0.01079295]
[1745377945018,0.01179237,92658.0,92653.0,0.01079295]
[1745377945603,0.01079249,92657.0,92652.0,0.01079307]
[1745377945810,0.01079249,92657.0,92653.0,0.01079295]
[1745377946638,0.01179249,92657.0,92653.0,0.01079295]
[1745377946838,0.001,92657.0,92654.0,0.01079284]
[1745377947039,0.001,92657.0,92653.0,0.01079295]
[1745377947441,0.00679237,92658.0,92653.0,0.01079295]
[1745377948051,0.01179249,92657.0,92651.0,0.01079319]
[1745377948255,0.01179249,92657.0,92652.0,0.01079307]
[1745377949374,0.01079249,92657.0,92653.0,0.01079295]
[1745377949776,0.00679237,92658.0,92653.0,0.01079295]
[1745377950343,0.01079249,92657.0,92652.0,0.01079307]
[1745377950539,0.01079249,92657.0,92653.0,0.01079295]
[1745377950743,0.00679237,92658.0,92653.0,0.01079295]
[1745377952829,0.01079249,92657.0,92653.0,0.01079295]
[1745377953516,0.0107926,92656.0,92652.0,0.01079307]
[1745377953871,0.01079249,92657.0,92652.0,0.01079307]
[1745377954930,0.0107926,92656.0,92651.0,0.01079319]
[1745377955233,0.01079249,92657.0,92652.0,0.01079307]
[1745377956311,0.00679237,92658.0,92653.0,0.01079295]
[1745377956512,0.01079249,92657.0,92653.0,0.01079295]
[1745377956944,0.01079249,92657.0,92652.0,0.01079307]
[1745377957879,0.0107926,92656.0,92651.0,0.01079319]
[1745377959850,0.01079272,92655.0,92651.0,0.01079319]
[1745377960073,0.01079272,92655.0,92651.0,0.01179319]
[1745377960992,0.01079272,92655.0,92651.0,0.01079319]
[1745377961248,0.01079272,92655.0,92651.0,0.001]
[1745377962110,0.27995827,92652.0,92651.0,0.001]
[1745377962320,0.64695827,92652.0,92651.0,0.001]
[1745377962903,0.19429212,92644.0,92638.0,0.0107947]
[1745377963085,0.19429212,92644.0,92637.0,0.03526985]
[1745377963578,0.01079377,92646.0,92638.0,0.0107947]
[1745377963779,0.1942904,92645.0,92637.0,0.03526985]
[1745377964214,0.001,92644.0,92637.0,0.03526985]
[1745377965592,0.1942904,92645.0,92637.0,0.03526985]
[1745377965810,0.1952904,92645.0,92637.0,0.03526985]
[1745377966017,0.001,92644.0,92637.0,0.03526985]
[1745377966217,0.1942904,92645.0,92637.0,0.03526985]
[1745377966593,0.001,92644.0,92637.0,0.03526985]
[1745377966975,0.1942904,92645.0,92637.0,0.03526985]
[1745377967398,0.1952904,92645.0,92637.0,0.03526985]
[1745377967699,0.01079447,92640.0,92637.0,0.03499698]
[1745377968046,0.19429978,92641.0,92637.0,0.03499698]
[1745377968216,0.01079424,92642.0,92637.0,0.03499698]
[1745377968422,0.01079435,92641.0,92637.0,0.03499698]
[1745377968866,0.01079435,92641.0,92637.0,0.03599698]
[1745377969423,0.01079447,92640.0,92637.0,0.03599698]
[1745377969758,0.01079447,92640.0,92637.0,0.03699698]
[1745377970525,0.01079447,92640.0,92637.0,0.03599698]
[1745377970761,0.01079447,92640.0,92637.0,0.03499698]
[1745377970936,0.01079447,92640.0,92637.0,0.03599698]
[1745377971706,0.01079447,92640.0,92637.0,0.03699698]
[1745377972635,0.01079412,92643.0,92638.0,0.0107947]
[1745377972837,0.01079435,92641.0,92637.0,0.03699698]
[1745377973413,0.01079435,92641.0,92637.0,0.03599698]
[1745377973606,0.01079435,92641.0,92637.0,0.03499698]
[1745377973805,0.01079435,92641.0,92638.0,0.001]
[1745377975173,0.01079424,92642.0,92638.0,0.0117947]
[1745377975322,0.01079424,92642.0,92638.0,0.001]
[1745377976386,0.01079424,92642.0,92637.0,0.03499698]
[1745377976586,0.01079435,92641.0,92638.0,0.002]
[1745377977177,0.01079435,92641.0,92638.0,0.001]
[1745377977974,0.010794,92644.0,92638.0,0.001]
[1745377978368,0.01079435,92641.0,92637.0,0.03599698]
[1745377978545,0.01079447,92640.0,92638.0,0.001]
[1745377979088,0.01079447,92640.0,92638.0,0.002]
[1745377979343,0.01079424,92642.0,92638.0,0.002]
[1745377979571,0.01079424,92642.0,92638.0,0.001]
[1745377979768,0.01079424,92642.0,92638.0,0.0127947]
[1745377979996,0.01079424,92642.0,92638.0,0.0137947]
[1745377980342,0.01079424,92642.0,92638.0,0.0127947]
[1745377980564,0.01079424,92642.0,92638.0,0.0137947]
[1745377981388,0.01079412,92643.0,92638.0,0.0117947]
[1745377981743,0.01079412,92643.0,92638.0,0.0127947]
[1745377982371,0.01079412,92643.0,92639.0,0.01079458]
[1745377982791,0.00011098,92645.0,92643.0,0.19429331]
[1745377982989,0.00011098,92645.0,92643.0,0.20883416]
[1745377983194,0.11019098,92650.0,92649.0,0.19428164]
[1745377985760,0.11219098,92650.0,92649.0,0.19428164]
[1745377985952,0.11219098,92650.0,92649.0,0.19528164]
[1745377986126,0.11019098,92650.0,92649.0,0.19528164]
[1745377989547,0.01079272,92655.0,92649.0,0.20607506]
[1745377990241,0.01079295,92653.0,92649.0,0.01179342]
[1745377990451,0.0936,92650.0,92649.0,0.001]
[1745377990853,0.0936,92650.0,92645.0,0.01454085]
[1745377991030,0.01079342,92649.0,92645.0,0.01454085]
[1745377991262,0.01079342,92649.0,92645.0,0.02533474]
[1745377991469,0.01079342,92649.0,92645.0,0.01079389]
[1745377991805,0.01079342,92649.0,92645.0,0.01454085]
[1745377992004,0.20507515,92649.0,92645.0,0.01554085]
[1745377992208,0.01079354,92648.0,92645.0,0.01654085]
[1745377992418,0.01079354,92648.0,92645.0,0.01554085]
[1745377992840,0.01079354,92648.0,92645.0,0.01654085]
[1745377993696,0.01079354,92648.0,92645.0,0.01554085]
[1745377994356,0.01079354,92648.0,92645.0,0.01654085]
[1745377994755,0.01079342,92649.0,92645.0,0.01654085]
[1745377995715,0.01079342,92649.0,92645.0,0.01554085]
[1745377995854,0.01079342,92649.0,92645.0,0.01654085]
[1745377996054,0.01079354,92648.0,92645.0,0.01654085]
[1745377996902,0.01079342,92649.0,92645.0,0.01654085]
[1745377997219,0.01079342,92649.0,92645.0,0.01454085]
[1745377997541,0.01079342,92649.0,92645.0,0.01654085]
[1745377997934,0.01079342,92649.0,92645.0,0.01554085]
[1745377998158,0.01079354,92648.0,92645.0,0.01554085]
[1745377998305,0.01079354,92648.0,92645.0,0.01654085]
[1745377998694,0.01079342,92649.0,92645.0,0.01654085]
[1745377998909,0.01079354,92648.0,92645.0,0.01654085]
[1745377999115,0.19428789,92647.0,92645.0,0.002]
[1745378000127,0.19428789,92647.0,92645.0,0.001]
[1745378000324,0.01079424,92642.0,92638.0,0.01454085]
[1745378000549,0.00979424,92642.0,92639.0,0.00014055]
[1745378000909,0.00979412,92643.0,92639.0,0.01093513]
[1745378001263,0.19427458,92653.0,92642.0,0.01079424]
[1745378001464,0.19427458,92653.0,92640.0,0.01079447]
[1745378001465,0.01079377,92646.0,92641.0,0.01079435]
[1745378001641,0.01079389,92645.0,92641.0,0.01079435]
[1745378001966,0.01079389,92645.0,92640.0,0.01079447]
[1745378002165,0.01079295,92653.0,92648.0,0.01079354]
[1745378002305,0.01079319,92651.0,92645.0,0.01079389]
[1745378002508,0.01079295,92653.0,92648.0,0.01079354]
[1745378002722,0.0107933,92650.0,92645.0,0.01079389]
[1745378002919,0.20506345,92655.0,92647.0,0.19428583]
[1745378003121,0.37779307,92652.0,92647.0,0.01079365]
[1745378003321,0.367,92652.0,92649.0,0.01079342]
[1745378004021,0.368,92652.0,92649.0,0.01079342]
[1745378004226,0.369,92652.0,92649.0,0.01079342]
[1745378004476,0.37879307,92652.0,92648.0,0.01454085]
[1745378004722,0.0107933,92650.0,92647.0,0.01454085]
[1745378004982,0.0107933,92650.0,92642.0,0.01031826]
[1745378005123,0.01079342,92649.0,92645.0,0.01079389]
[1745378005339,0.0107933,92650.0,92646.0,0.01079377]
[1745378005533,0.0107933,92650.0,92642.0,0.01031826]
[1745378005534,0.01079365,92647.0,92641.0,0.01079435]
[1745378005742,0.01079365,92647.0,92642.0,0.01079424]
[1745378005989,0.01079354,92648.0,92644.0,0.010794]
[1745378006287,0.0107933,92650.0,92644.0,0.010794]
[1745378006490,0.19427954,92650.0,92643.0,0.01079412]
[1745378006688,0.01079354,92648.0,92644.0,0.010794]
[1745378006833,0.01079354,92648.0,92642.0,0.01079424]
[1745378007038,0.01079354,92648.0,92643.0,0.01454085]
[1745378007664,0.01079365,92647.0,92642.0,0.02533509]
[1745378007998,0.01079365,92647.0,92634.0,0.19431202]
[1745378007999,0.19430051,92640.0,92637.0,0.01526985]
[1745378008200,0.19429842,92641.0,92637.0,0.01526985]
[1745378008407,0.01079424,92642.0,92637.0,0.01526985]
[1745378008607,0.01079424,92642.0,92637.0,0.02606467]
[1745378009022,0.01079424,92642.0,92637.0,0.01526985]
[1745378009541,0.00979424,92642.0,92637.0,0.02606467]
[1745378009743,0.00979424,92642.0,92637.0,0.01526985]
[1745378009991,0.0456,92641.0,92636.0,0.0004245]
[1745378010153,0.23989842,92641.0,92636.0,0.0004245]
[1745378010359,0.34820147,92641.0,92636.0,0.0004245]
[1745378010706,0.34720147,92641.0,92636.0,0.0004245]
[1745378011291,0.47530305,92640.0,92636.0,0.0004245]
[1745378012565,0.47530305,92640.0,92639.0,0.00114055]
[1745378013598,0.47530305,92640.0,92639.0,0.00014055]
[1745378014051,0.48330305,92640.0,92639.0,0.00114055]
[1745378014382,0.48930305,92640.0,92639.0,0.00214055]
[1745378015458,0.53590305,92640.0,92639.0,0.00214055]
[1745378022622,0.65238305,92640.0,92639.0,0.00214055]
[1745378027453,0.65212399,92640.0,92639.0,0.00214055]
[1745378038966,0.20509719,92639.0,92636.0,1e-08]
[1745378039128,0.20509719,92639.0,92626.0,0.0004247]
[1745378039129,0.01079563,92630.0,92626.0,0.0004247]
[1745378039310,0.01079563,92630.0,92627.0,0.00089235]
[1745378039719,0.19432568,92628.0,92627.0,0.00089235]
[1745378039922,0.30262873,92628.0,92627.0,0.00089235]
[1745378040156,0.41914873,92628.0,92627.0,0.00089235]
[1745378040558,0.42706217,92628.0,92627.0,0.00089235]
[1745378041129,0.43106217,92628.0,92627.0,0.00089235]
[1745378041333,0.43206217,92628.0,92627.0,0.00089235]
[1745378041701,0.42706217,92628.0,92627.0,0.00089235]
[1745378042556,0.43406217,92628.0,92627.0,0.00189235]
[1745378043301,0.54200177,92628.0,92627.0,0.00189235]
[1745378043507,0.43706217,92628.0,92627.0,0.00189235]
[1745378044142,0.43006217,92628.0,92627.0,0.00189235]
[1745378044373,0.79680311,92628.0,92627.0,0.00189235]
[1745378045809,0.84400311,92628.0,92627.0,1e-08]
[1745378046143,0.19435086,92616.0,92604.0,0.0488]
[1745378046362,0.66939485,92616.0,92600.0,0.14343241]
[1745378046560,0.66939485,92616.0,92615.0,1e-08]
[1745378047414,0.67339485,92616.0,92615.0,1e-08]
[1745378047828,0.67039485,92616.0,92615.0,1e-08]
[1745378047955,0.67139485,92616.0,92615.0,1e-08]
[1745378048168,0.67539485,92616.0,92615.0,0.00100001]
[1745378051927,0.66839485,92616.0,92615.0,0.00100001]
[1745378052618,0.78259485,92616.0,92615.0,0.00100001]
[1745378053036,0.78559485,92616.0,92615.0,0.00200001]
[1745378053242,0.78159485,92616.0,92615.0,0.00100001]
[1745378053750,0.78359485,92616.0,92615.0,0.00200001]
[1745378054461,0.66739485,92616.0,92615.0,0.00200001]
[1745378054675,0.6752918,92616.0,92615.0,0.05080001]
[1745378055461,0.6752918,92616.0,92615.0,0.00200001]
[1745378062521,0.5590918,92616.0,92615.0,0.00200001]
[1745378062740,0.6752918,92616.0,92615.0,0.00200001]
[1745378064192,0.78359485,92616.0,92615.0,0.00200001]
[1745378066613,0.20518136,92601.0,92600.0,0.13200761]
[1745378066765,0.20518136,92601.0,92528.0,0.08568292]
[1745378066766,0.19440124,92592.0,92591.0,0.14641202]
[1745378066978,0.19440124,92592.0,92591.0,0.02894526]
[1745378067197,0.19440124,92592.0,92591.0,0.02994526]
[1745378067607,0.19439593,92595.0,92592.0,0.01454085]
[1745378067775,0.19239593,92595.0,92592.0,0.01454085]
[1745378067989,0.19246666,92595.0,92592.0,0.01454085]
[1745378068832,7.073e-05,92595.0,92592.0,0.01454085]
[1745378069654,0.19436519,92610.0,92594.0,0.01454085]
[1745378069655,0.19437973,92603.0,92594.0,0.01454085]
[1745378069851,0.19437912,92603.0,92596.0,0.01454085]
[1745378070012,0.001,92595.0,92594.0,0.01454085]
[1745378070436,0.002,92595.0,92594.0,0.01454085]
[1745378070982,0.001,92595.0,92594.0,0.01554085]
[1745378071284,0.002,92595.0,92594.0,0.01754085]
[1745378072038,0.001,92595.0,92594.0,0.01754085]
[1745378072226,0.002,92595.0,92594.0,0.01754085]